Cogmind - Beta 14 @@@ ROGUE MODE // 2024.10.08 @ 20:52:33 // Winter2022/Polymind Player: f3-rnm Result: Destroyed by L-31 Rogue with Katana Performance ------------- Evolutions (1) 500 Regions Visited (4) 800 Robots Destroyed (20) 100 Value Destroyed (454) 454 Prototype IDs (0) 0 Alien Tech Used (0) 0 Bonus (2571) 2571 TOTAL SCORE: 3625 Bonus ------- Polymind Skill 2203 Pacifist 200 High Alert Combat Kills 14 Follower Combat Kills 154 Cogmind --------- Core Integrity 0/400 Matter 19/125 Energy 50/50 System Corruption 7% Temperature Cool (0) Movement Rolling (80) Location -9/Mines Parts ------- > --- POWER (1) -------- Light Ion Engine > --- PROPULSION (2) --- Wheel Wheel > --- UTILITY (1) ------ Medium Matter Pod > --- WEAPON (1) ------- (None) > --- INVENTORY (1) ---- (None) Peak State ------------ > --- POWER ------------ Improved Ion Engine > --- PROPULSION ------- Light Treads Light Treads > --- UTILITY ---------- Heat Sink Heat Sink Light Armor Plating > --- WEAPON ----------- Beam Rifle Heavy Assault Rifle > --- INVENTORY -------- (None) [Rating: 11] Favorites ----------- Power Improved Ion Engine Engine Improved Ion Engine Propulsion Light Treads Treads Light Treads Leg Aluminum Leg Wheel Wheel Utility Heat Sink Device Heat Sink Storage Medium Matter Pod Protection Light Armor Plating Weapon Small Laser Energy Gun Small Laser Ballistic Gun Heavy Assault Rifle Build | -11 -10 -10 -9 -9 ------- Run | Yrd Mat Min Mat Min Slots Evolved . | . . . . . Power . | . . . . . Propulsion . | . . . . . Utility . | . . . . . Weapon . | . . . . . Parts Attached . | . . . . . Power . | . . . . . Engine . | . . . . . Core . | . . . . . Reactor . | . . . . . Propulsion . | . . . . . Treads . | . . . . . Leg . | . . . . . Wheel . | . . . . . Hover . | . . . . . Flight . | . . . . . Utility . | . . . . . Device . | . . . . . Storage . | . . . . . Processor . | . . . . . Hackware . | . . . . . Protection . | . . . . . Artifact . | . . . . . Weapon . | . . . . . Energy Gun . | . . . . . Energy Cannon . | . . . . . Ballistic Gun . | . . . . . Ballistic Cannon . | . . . . . Launcher . | . . . . . Special Weapon . | . . . . . Impact Weapon . | . . . . . Slashing Weapon . | . . . . . Piercing Weapon . | . . . . . Special Melee Weapon . | . . . . . Unidentified Prototypes . | . . . . . Parts Lost 5 | . . . 3 2 Power 1 | . . . . 1 Propulsion 1 | . . . . 1 Utility 1 | . . . 1 . Weapon 2 | . . . 2 . Highest Loss Streak 2 | . . . 2 2 To Critical Strikes . | . . . . . Average Slot Usage (%) 78 | . . . 83 88 Engine 11 | . . . 11 14 Treads 10 | . . . 19 . Leg 15 | . . . 3 32 Device 18 | . . . 21 18 Protection 2 | . . . 4 . Energy Gun 13 | . . . 11 18 Ballistic Gun 4 | . . . 9 . Peak Build Rating 11 | . . . 11 5 Average Rating 6 | . . . 8 4 On Entrance 1 | . . . . 5 Naked Turns 223 | . 88 42 87 6 Heaviest Build 18 | . . . 18 7 Greatest Support 40 | 3 3 3 40 20 Greatest Overweight (x) . | . . . . . Average Overweight (x) . | . . . . . Largest Inventory Capacity 1 | . . . 1 1 Average Capacity . | . . . . . Most Carried . | . . . . . Average Carried . | . . . . . Final Capacity 1 | . . . 1 1 Final Carried . | . . . . . Class Distribution -------------------- 43% | Grunt 40% | Sentry 13% | Cogmind Dominant Class ---------------- Cogmind | -10/Materials Cogmind | -10/Mines Sentry | -9/Materials Grunt | -9/Mines Resources | -11 -10 -10 -9 -9 ----------- Run | Yrd Mat Min Mat Min Matter Collected 78 | . . . 78 . Remotely . | . . . . . Salvage Created 435 | . . . 404 31 Parts 39 | . . . 34 5 Haulers Intercepted . | . . . . . Recyclers Shooed . | . . . . . Parts Field Recycled . | . . . . . Retrieved Matter . | . . . . . Parts Self-Destructed . | . . . . . Prevented . | . . . . . Kills | -11 -10 -10 -9 -9 ------- Run | Yrd Mat Min Mat Min Combat Hostiles Destroyed 19 | . . . 15 4 Guns 19 | . . . 15 4 Classes Destroyed 5 | . . . 5 . Watcher 1 | . . . 1 . Swarmer 11 | . . . 7 4 Grunt 4 | . . . 4 . Duelist 1 | . . . 1 . Sentry 3 | . . . 3 . Best Kill Streak 3 | . . . 3 3 Combat Bots Only 3 | . . . 3 3 Max Kills in Single Turn 1 | . . . 1 1 Gunslinging . | . . . . . Exploded . | . . . . . Melee . | . . . . . Uniques/NPCs Destroyed . | . . . . . Combat | -11 -10 -10 -9 -9 -------- Run | Yrd Mat Min Mat Min Hostile Shots Fired 142 | . 4 . 101 37 Missed 40 | . 1 . 27 12 Damage Taken 1230 | . 23 . 932 275 Core 440 | . 23 . 257 160 Absorbed by Shields . | . . . . . Core Remaining (%) 95 | 100 . 90 . . Volleys Fired 61 | . . . 46 15 Largest 2 | . . . 2 1 Hottest 79 | . . . 79 40 Shots Fired 103 | . . . 87 16 Gun 103 | . . . 87 16 Cannon . | . . . . . Launcher . | . . . . . Special . | . . . . . Kinetic 41 | . . . 41 . Thermal 62 | . . . 46 16 Explosive . | . . . . . Electromagnetic . | . . . . . Robot Hit Streak 6 | . . . 6 3 Robot Miss Streak 4 | . . . 4 3 Penetration Max . | . . . . . Secondary Targets 2 | . . . 2 . Max Gunslinging Chain 1 | . . . 1 . Shots Hit Robots 56 | . . . 49 7 Core Hits 27 | . . . 23 4 Critical Kills . | . . . . . Critical Parts Destroyed . | . . . . . Critical Strikes 2 | . . . 2 . Burn 2 | . . . 2 . Melee Attacks . | . . . . . Impact . | . . . . . Slashing . | . . . . . Piercing . | . . . . . Sneak Attacks . | . . . . . Combat Hostiles . | . . . . . Follow-up Attacks . | . . . . . Damage Inflicted 853 | . . . 791 62 Guns 853 | . . . 791 62 Cannons . | . . . . . Explosions . | . . . . . Melee . | . . . . . Ramming . | . . . . . Kinetic 351 | . . . 351 . Thermal 502 | . . . 440 62 Explosive . | . . . . . Electromagnetic . | . . . . . Impact . | . . . . . Slashing . | . . . . . Piercing . | . . . . . Highest Corruption 7 | . . . 7 7 Average Corruption 6 | . . . 6 7 Corruption Purged . | . . . . . Corruption Blocked . | . . . . . Effects 27 | . . . 9 18 Message Errors 6 | . . . 2 4 Matter Fused 3 | . . . 2 1 Energy Discharges 6 | . . . 3 3 Parts Fused 2 | . . . . 2 Data Loss (minor) 2 | . . . . 2 Data Loss (major) 3 | . . . 1 2 Misfires 2 | . . . . 2 Alerts 1 | . . . . 1 Weapon Failures 2 | . . . 1 1 Overload Shots . | . . . . . Overflow Damage . | . . . . . Projectiles . | . . . . . Explosions . | . . . . . Melee . | . . . . . Knockbacks . | . . . . . Impact . | . . . . . Kinetic . | . . . . . Secondary . | . . . . . Self-Inflicted Damage . | . . . . . Shots . | . . . . . Rammed . | . . . . . Targets Rammed . | . . . . . Kicked . | . . . . . Crushed . | . . . . . Highest Temperature 20 | . . . 20 9 Average Temperature 7 | . . . 7 4 Received Heat Transfer 372 | . . . 312 60 Siege Activations . | . . . . . Robots Corrupted . | . . . . . Combat Hostiles . | . . . . . Parts Fried . | . . . . . Impact Corruptions . | . . . . . Robots Melted . | . . . . . Combat Hostiles . | . . . . . Parts Melted 2 | . . . . 2 Heat Transferred 1408 | . . . 1258 150 Parts Sabotaged . | . . . . . Parts Stolen . | . . . . . Parts Stripped . | . . . . . Power Chain Reactions . | . . . . . Alert | -11 -10 -10 -9 -9 ------- Run | Yrd Mat Min Mat Min Peak Influence 435 | . 30 11 435 351 Initial 111 | . . 11 3 111 Average 218 | . . 11 271 197 Maximum Alert Level 2 | . . . 2 1 Low Security (%) 31 | 100 100 100 16 35 Level 1 61 | . . . 68 64 Level 2 7 | . . . 14 . Level 3 . | . . . . . Level 4 . | . . . . . Level 5 . | . . . . . High Security . | . . . . . Max Security . | . . . . . Squads Dispatched 2 | . . . 2 . Investigation . | . . . . . Extermination . | . . . . . Reinforcement 2 | . . . 2 . Assault . | . . . . . Garrison . | . . . . . Intercept . | . . . . . Searches Triggered . | . . . . . Construction Impeded 1 | . . . 1 . Haulers Reinforced . | . . . . . Active Scanning Responses . | . . . . . Cargo Convoy Interrupts . | . . . . . Stealth | -11 -10 -10 -9 -9 --------- Run | Yrd Mat Min Mat Min Distress Signals 4 | . . . 3 1 Communications Jammed . | . . . . . Distress Signals . | . . . . . Times Spotted 58 | . 6 . 33 19 Peak Tracking Total 8 | . 8 . 5 4 Tactical Retreats 5 | . 1 . 4 . Traps | -11 -10 -10 -9 -9 ------- Run | Yrd Mat Min Mat Min Traps Triggered 4 | . . . 4 . Indirectly . | . . . . . Trap Hack Attempts . | . . . . . Triggered . | . . . . . Disarmed . | . . . . . Reprogrammed . | . . . . . Reused . | . . . . . Traps Extracted . | . . . . . Installed . | . . . . . Triggered . | . . . . . Machines | -11 -10 -10 -9 -9 ---------- Run | Yrd Mat Min Mat Min Machines Disabled 1 | . . . 1 . Max in Single Turn 1 | . . . 1 . Machines Repaired . | . . . . . Machines Dismantled . | . . . . . Machines Sabotaged . | . . . . . Overloaded Fab Kills . | . . . . . Hacking | -11 -10 -10 -9 -9 --------- Run | Yrd Mat Min Mat Min Machines Accessed . | . . . . . Terminals . | . . . . . Fabricators . | . . . . . Repair Stations . | . . . . . Recycling Units . | . . . . . Scanalyzers . | . . . . . Garrison Access . | . . . . . Total Hacks . | . . . . . Successful . | . . . . . Failed . | . . . . . Catastrophic . | . . . . . Database Lockouts . | . . . . . Manual . | . . . . . Terminals . | . . . . . Fabricators . | . . . . . Repair Stations . | . . . . . Recycling Units . | . . . . . Scanalyzers . | . . . . . Garrison Access . | . . . . . Terminal Hacks . | . . . . . Fabricator Hacks . | . . . . . Repair Station Hacks . | . . . . . Recycling Unit Hacks . | . . . . . Scanalyzer . | . . . . . Garrison Access Hacks . | . . . . . Unauthorized Hacks . | . . . . . Terminals . | . . . . . Fabricators . | . . . . . Repair Stations . | . . . . . Recycling Units . | . . . . . Scanalyzers . | . . . . . Garrison Access . | . . . . . Data Cores Recovered . | . . . . . Used . | . . . . . Hacking Detections . | . . . . . Full Trace Events . | . . . . . Feedback Events . | . . . . . Feedback Blocked . | . . . . . Robot Schematics Acquired . | . . . . . Robots Built . | . . . . . Authchips . | . . . . . Time . | . . . . . Total Robot Build Rating . | . . . . . Part Schematics Acquired . | . . . . . Parts Built . | . . . . . Authchips . | . . . . . Time . | . . . . . Total Part Build Rating . | . . . . . Parts Repaired . | . . . . . Time . | . . . . . Parts Recycled . | . . . . . Recycled Matter . | . . . . . Retrieved Matter . | . . . . . Retrieved Components . | . . . . . Parts Scanalyzed . | . . . . . Part Schematics Acquired . | . . . . . Parts Damaged . | . . . . . Bothacking | -11 -10 -10 -9 -9 ------------ Run | Yrd Mat Min Mat Min Used RIF Installer . | . . . . . Robots Hacked 2 | . . . 2 . Non-combat . | . . . . . Combat 2 | . . . 2 . Robot Hacks Applied 2 | . . . 2 . find_shortcuts 2 | . . . 2 . Relay Couplers Released . | . . . . . Fabnet Peak Effective % . | . . . . . Robots Rewired . | . . . . . Allies Hacked . | . . . . . Hacks Repelled . | . . . . . Allies | -11 -10 -10 -9 -9 -------- Run | Yrd Mat Min Mat Min Total Allies 6 | . . 3 . 3 Largest Group 3 | . . 3 3 3 Highest-Rated Group 72 | . . 40 40 72 Highest-Rated Ally 31 | . . 16 16 31 Total Orders . | . . . . . Ally Attacks 49 | . . . 15 34 Total Damage 651 | . . . 120 531 Kills 13 | . . . 3 10 Allies Corrupted . | . . . . . Allies Melted . | . . . . . Intel | -11 -10 -10 -9 -9 ------- Run | Yrd Mat Min Mat Min Robot Analysis Total 3 | . . . 2 1 Derelict Logs Recovered 3 | . . . . 3 Drone Launches . | . . . . . Drone Recoveries . | . . . . . Exploration | -11 -10 -10 -9 -9 ------------- Run | Yrd Mat Min Mat Min Turns Passed 1648 | 10 88 42 835 673 Spaces Moved 1212 | 21 141 40 482 528 Core 319 | 21 141 40 106 11 Treads 313 | . . . 313 . Legs 547 | . . . 63 484 Wheels 33 | . . . . 33 Hover . | . . . . . Flight . | . . . . . Fastest Speed 50 | 50 50 50 50 50 Average Speed 110 | 50 50 50 130 116 Slowest Speed 160 | 50 50 50 160 120 Overloaded Moves . | . . . . . Propulsion Burnouts . | . . . . . Robots Hopped . | . . . . . Cave-ins Triggered . | . . . . . Exploration Rate (%) 43 | 4 35 18 68 91 Regions Visited 4 Branch Regions 2 Pre-discovered Areas 2 | . . . . 2 Known Exits Taken . | . . . . . Unknown Exits Taken 4 | 1 1 1 1 . Scrap Searched 2 | . . . . 2 Spaces Dug . | . . . . . Terrain Destroyed . | . . . . . Melee . | . . . . . Projectile . | . . . . . AOE . | . . . . . Terrain Rammed . | . . . . . Walls Destroyed . | . . . . . Machines Disabled . | . . . . . Actions | -11 -10 -10 -9 -9 --------- Run | Yrd Mat Min Mat Min Total 1410 | 20 157 61 599 573 Wait 141 | . 17 22 72 30 Move 1208 | 20 140 39 481 528 Hop . | . . . . . Pick Up . | . . . . . Fast Attach . | . . . . . Attach . | . . . . . Detach . | . . . . . Swap . | . . . . . Drop . | . . . . . Fire 61 | . . . 46 15 Melee . | . . . . . Ram . | . . . . . Kick . | . . . . . Crush . | . . . . . Escape Stasis . | . . . . . Rewire . | . . . . . Trap . | . . . . . Miscellaneous . | . . . . . Route ------- -11/Scrapyard -10/Materials (discovered 2 exits: [*Min x2]) -10/Mines -9/Materials (discovered 5 exits: [*Mat x3] / [*Min x2]) -9/Mines (discovered 2 exits: [*Mat x2]) History --------- Turn | Location | Event 3 | -11/Scrapyard | Discovered new exit (range 15) 11 | -11/Scrapyard | Entered Materials 31 | -10/Materials | Discovered new exit (range 15) 96 | -10/Materials | Discovered new exit (range 6) 99 | -10/Materials | Entered Mines 110 | -10/Mines | Assisted by bots powering up and referring to "LRC-V3" 115 | -10/Mines | Discovered new exit (range 8) 141 | -10/Mines | Entered Materials 141 | -9/Materials | Accompanied by 3 allies 329 | -9/Materials | Discovered new exit (range 3) 572 | -9/Materials | Discovered new exit (range 15) 784 | -9/Materials | Discovered new exit (range 11) 872 | -9/Materials | Core integrity fell below 50% 965 | -9/Materials | Discovered new exit (range 10) 971 | -9/Materials | Discovered new exit (range 16) 976 | -9/Materials | Entered Mines 1108 | -9/Mines | Discovered new exit (range 9) 1129 | -9/Mines | Received a Mining Laser from a helpful Derelict 1353 | -9/Mines | Learned location of Storage (-8) 1378 | -9/Mines | Discovered new exit (range 7) 1451 | -9/Mines | Core integrity fell below 20% 1486 | -9/Mines | Learned location of Zion (-6) 1588 | -9/Mines | Learned location of 1 exit from Lower Caves 1649 | -9/Mines | Destroyed by L-31 Rogue with Katana Last Messages --------------- 01450_ S-10 Pest destroyed. 01456_ Acquired 5 Protomatter. 01475_ System corrupted: Aluminum Leg fused. 01486_ Acquired derelict log, extracted data. World map updated: -6/Zion. 01522_ T-07 Excavator is excavating. 01523_ K-01 Serf collects debris. 01524_ U-05 Engineer lays Concrete. 01526_ K-01 Serf collects debris. 01528_ U-05 Engineer lays Concrete. 01554_ System corrupted: IFF burst signal emitted. 01588_ Acquired derelict log, extracted data. Data stored: Lower Caves exits (x1). 01607_ Released control of G-34 Mercenary. 01608_ G-34 Mercenary reactivates. 01613_ Took control of K-01 Serf. 01613_ Extracted analysis data for K-01 Serf. 01620_ System corrupted: Matter fused (-6). 01639_ Cleaned Plasma Injector. 01643_ &3L=&O4NASXA9%R%RLSMUDB5LTJIDKZYS Map ----- +----------------------------------------------------+ | | | | | | | | | | | | | ???????????????????????????????? | | ??????????????????????########?? | | ??????????????????????# #?? | | ??????????????????????# !! #?? | | ??????????????????????# ! #?? | | ??????????????????????# ! ! ### | | ??????????????????????# !! | | ???????????##########?# | | ???????????# ######## | | ???????????# ##???## | | ???????????# ## ##??# | | ???????????# ## #??# | | ???????????# ### ##?# | | ???????????# ##### #?## # | | ??????????## ##### #??## # | | ?????????## #### ###### | | ????????## #?# | | ?######## #?# ####### | | ?# # ##?# #??????## | | ?# """k## #### #???????? | | ?# """l### ## #???????? | | ?# """ ### #???????? | | ?# ##?????## | | ?# #?????# | | ?# ### ##### #??????# | | ?# #?## ##???## #??????# | | ?########??####?????# ##??????? | | ????????????????????# ##??????? | | ????????????????????## ######?? | | ???????######????????## ### | | ???????# ##????????# | | ???????# ##???????## | | ???????# # ##???????## | | ???????#### #????????### """ | | ??????????# #?????####?## """ | | ??????????# ##????## #### """ | | ??????????# ##????## ## | | ?????????## #????## | | ?????????# ##????# | | ?????????# ##???## | | ?????????# ##?## | | ?????????## ### ###### ## | | ??????????## ##????###### | | ???????????## ##??????????## | +----------------------------------------------------+ Best States ------------- Heat Dissipation 36 Energy Generation 17 Energy Capacity 215 Matter Stores 100 Matter Capacity 125 Sight Range 16 Terrain Scan Density 10 Armor Coverage 150 Resistance: EX 50 Resistance: I 25 Evasion (%) 55 Recoil Reduction 2 Item Schematics ----------------- None Robot Schematics ------------------ None Fabricated ------------ Nothing Alien Tech Used ----------------- None Achievements -------------- None Challenges ------------ None Polymind | -11 -10 -10 -9 -9 ---------- Run | Yrd Mat Min Mat Min Hosts 3 | . . . 2 1 Combat Hostiles 2 | . . . 2 . Allies . | . . . . . Unique Host Classes 3 | . . . 2 1 Average Host Suspicion 91 | . . . 100 81 Unsuspicious Activity 5 | . . . . 5 Returns to Shadow . | . . . . . Fuzzy Dispatches . | . . . . . Protomatter Created 108 | . . . 74 34 Used 43 | . . . 38 5 Decayed . | . . . . . Highest Spend 23 | . . . 23 5 Top 5 Hosts by Kills: Y-45 Defender (-9/Materials: 15) G-34 Mercenary (-9/Materials: 4) Game ------ Seed ExpertWeaponBooster Manual? 0 Play Time 00:09:20 Cumulative 246.5 hours Start 2024.10.08 @ 20:45:43 End 2024.10.08 @ 20:52:33 Sessions 1 Manual Loads 0 Difficulty Rogue Special Mode Winter2022/Polymind Game No. 261 Rogue 225 Adventurer 36 Explorer 0 Win Type - Total 10 Types 3/0/7/0/0/0/0/0/0 Lore% 62 Gallery% 82 Achievement% 72 Wizard Run 0 Options --------- Layout 0 ASCII 0 Keyboard 0 Movement Mouse Keybinds 0 Fullscreen 1 Font 18/SmallcapsGlow Map View 76x50 Zoom Use 0% Tactical HUD 1 Map Filters NONE Filters NONE Steam 1 RUN: 9e30eeaa-703f-4af4-b701-42247429387f